Workbook

Sheet NSU
B1: Eveliina Tuominen | E1: 17.3.1998 Pori
B2: SUPERPESIS | E2: RUNKOSARJA | I2: Kärkilyönnit (KL), pesänvälit | Q2: Runkosarja | U2: Ylempi loppusarja | Z2: Alempi loppusarja | AG2: Arvo-ottelut ja mitalit
B3: Vuosi | C3: Sija | D3: Seura | E3: OTT | F3: KUN | G3: LÖI | H3: TOI | I3: KL | J3: 0 > 1 | K3: 1 > 2 | L3: 2 > 3 | M3: 3 > k | N3: KL-% | P3: LÖI | Q3: TOI | R3: L+T | S3: KL | U3: OTT | V3: KUN | W3: LÖI | X3: TOI | Y3: KL | Z3: OTT | AA3: KUN | AB3: LÖI | AC3: TOI | AD3: KL | AE3: IL | AF3: LL | AG3: Halli | AH3: K | AI3: H | AJ3: P
B4: 2012 | C4: 3. | D4: Pesäkarhut 2 | F4: suomensarja
B5: 2013 | C5: 2. | D5: Pesäkarhut 2 | F5: suomensarja
B6: 2014 | C6: 3. | D6: Pesäkarhut | E6: 4 | F6: 0 | G6: 0 | H6: 1 | I6: 7 | J6: 7 | K6: 0 | L6: 0 | M6: 0 | N6: 28.0 % | O6: =PRODUCT(I6/N6) -> 25 | AJ6: 1
B7: 2015 | C7: 10. | D7: Pesäkarhut 2 | F7: ykköspesis
B8: 2015 | C8: 4. | D8: Pesäkarhut | E8: 2 | F8: 0 | G8: 0 | H8: 0 | I8: 5 | J8: 2 | K8: 3 | L8: 0 | M8: 0 | N8: 55.6 % | O8: 9
B9: 2016 | C9: 9. | D9: Pesäkarhut 2 | F9: ykköspesis
B10: 2016 | C10: 3. | D10: Pesäkarhut | E10: 1 | F10: 0 | G10: 0 | H10: 2 | I10: 1 | J10: 0 | K10: 1 | L10: 0 | M10: 0 | N10: 33.3 % | O10: 3 | AJ10: 1
B11: 2017 | C11: 3. | D11: Pesäkarhut 2 | F11: ykköspesis
B12: 2017 | C12: 9. | D12: Pesä Ysit | E12: 5 | F12: 0 | G12: 0 | H12: 4 | I12: 12 | J12: 6 | K12: 5 | L12: 1 | M12: 0 | N12: 41.4 % | O12: 29
B13: 2017 | C13: 2. | D13: Pesäkarhut | E13: 11 | F13: 0 | G13: 2 | H13: 7 | I13: 20 | J13: 7 | K13: 10 | L13: 1 | M13: 2 | N13: 38.5 % | O13: 52 | AG13: 1 | AI13: 1
B14: 2018 | C14: 8. | D14: Pesäkarhut 2 | F14: ykköspesis
B15: 2018 | C15: 3. | D15: Pesäkarhut | E15: 21 | F15: 2 | G15: 4 | H15: 8 | I15: 39 | J15: 15 | K15: 8 | L15: 10 | M15: 6 | N15: 40.6 % | O15: 96 | U15: 10 | V15: 1 | W15: 2 | X15: 1 | Y15: 19 | AG15: 1 | AJ15: 1
B16: 2019 | C16: 10. | D16: Pesäkarhut 2 | F16: ykköspesis
B17: 2019 | C17: 2. | D17: Pesäkarhut | E17: 22 | F17: 1 | G17: 5 | H17: 4 | I17: 55 | J17: 32 | K17: 7 | L17: 10 | M17: 6 | N17: 49.5 % | O17: 111 | U17: 10 | V17: 0 | W17: 0 | X17: 1 | Y17: 21 | AG17: 1 | AI17: 1
B18: 2020 | C18: 3. | D18: Pesäkarhut | E18: 20 | F18: 0 | G18: 5 | H18: 12 | I18: 70 | J18: 19 | K18: 37 | L18: 9 | M18: 5 | N18: 56.5 % | O18: 124 | U18: 9 | V18: 0 | W18: 1 | X18: 2 | Y18: 19 | AJ18: 1
B19: 2021 | C19: 5. | D19: Pesäkarhut 2 | F19: ykköspesis
B20: 2021 | C20: 1. | D20: Pesäkarhut | E20: 14 | F20: 0 | G20: 3 | H20: 7 | I20: 20 | J20: 6 | K20: 3 | L20: 8 | M20: 3 | N20: 45.5 % | O20: 44 | U20: 3 | V20: 0 | W20: 2 | X20: 1 | Y20: 6 | AH20: 1
B21: 2022 | C21: 4. | D21: Pesäkarhut | E21: 17 | F21: 1 | G21: 5 | H21: 9 | I21: 42 | J21: 13 | K21: 12 | L21: 11 | M21: 6 | N21: 56.8 % | O21: 74 | U21: 7 | V21: 0 | W21: 3 | X21: 0 | Y21: 17
B22: 2023 | C22: 1. | D22: Pesäkarhut | E22: 21 | F22: 1 | G22: 10 | H22: 9 | I22: 50 | J22: 6 | K22: 10 | L22: 23 | M22: 11 | N22: 53.2 % | O22: 94 | U22: 8 | V22: 0 | W22: 0 | X22: 3 | Y22: 9 | AH22: 1
B23: Yhteensä | E23: =SUM(E4:E22) -> 138 | F23: 5 | G23: 34 | H23: 63 | I23: 321 | J23: 113 | K23: 96 | L23: 73 | M23: 39 | N23: =PRODUCT(I23/O23) -> 48.6 % | O23: =SUM(O4:O22) -> 661 | U23: =SUM(U4:U22) -> 47 | V23: 1 | W23: 8 | X23: 8 | Y23: 91 | Z23: 0 | AA23: 0 | AB23: 0 | AC23: 0 | AD23: 0 | AE23: 0 | AF23: 0 | AG23: 3 | AH23: 2 | AI23: 2 | AJ23: 4
B24: Pesispörssi | D24: =SUM(F23:H23)+((I23-F23-G23)/3)+(E23/3)+(AE23*25)+(AF23*25)+(AG23*10)+(AH23*25)+(AI23*20)+(AJ23*15)-15-15 -> 392.0
B26: URA SUPERISSA | E26: OTT | F26: KUN | G26: LÖI | H26: TOI | I26: KL | K26: ka/L | L26: ka/T | M26: ka/KL | N26: K - % | P26: ENSIMMÄISET
B27: Runkosarja | E27: =PRODUCT(E23) -> 138 | F27: =PRODUCT(F23) -> 5 | G27: =PRODUCT(G23) -> 34 | H27: =PRODUCT(H23) -> 63 | I27: =PRODUCT(I23) -> 321 | K27: =PRODUCT((F27+G27)/E27) -> 0.28 | L27: =PRODUCT(H27/E27) -> 0.46 | M27: =PRODUCT(I27/E27) -> 2.33 | N27: =PRODUCT(N23) -> 48.6 % | O27: =PRODUCT(O23) -> 661 | P27: Ottelu | R27: 04.06. 2014 Lukko - Pesäkarhut 2-0 (3-1, 5-0) | AC27: 1. ottelu | AE27: 16 v 2 kk 18 pv
B28: Ylempi loppusarja | E28: =SUM(U23) -> 47 | F28: =SUM(V23) -> 1 | G28: =SUM(W23) -> 8 | H28: =SUM(X23) -> 8 | I28: =SUM(Y23) -> 91 | K28: =PRODUCT((F28+G28)/E28) -> 0.19 | L28: =PRODUCT(H28/E28) -> 0.17 | M28: =PRODUCT(I28/E28) -> 1.94 | N28: =PRODUCT(I28/O28) -> 46.0 % | O28: 198 | P28: Lyöty | R28: 31.05. 2017 Pesäkarhut - Lukko 2-1 (0-2, 3-2, 1-0) | AC28: 18. ottelu | AE28: 19 v 2 kk 14 pv
B29: Alempi loppusarja | P29: Tuotu | R29: 23.07. 2014 Pesäkarhut - KeKi 2-1 (2-3, 5-2, 1-0) | AC29: 3. ottelu | AE29: 16 v 4 kk 6 pv
B30: KAIKKI | E30: =SUM(E27:E29) -> 185 | F30: =SUM(F27:F29) -> 6 | G30: =SUM(G27:G29) -> 42 | H30: =SUM(H27:H29) -> 71 | I30: =SUM(I27:I29) -> 412 | K30: =PRODUCT((F30+G30)/E30) -> 0.26 | L30: =PRODUCT(H30/E30) -> 0.38 | M30: =PRODUCT(I30/E30) -> 2.23 | N30: =PRODUCT(I30/O30) -> 48.0 % | O30: =SUM(O27:O29) -> 859 | P30: Kunnari | R30: 08.07. 2018 Virkiä - Pesäkarhut 0-2 (0-2, 3-10) | AC30: 33. ottelu | AE30: 16 v 4 kk 6 pv
B32: Seurat | D32: Pesäkarhut (1985), kasvattajaseura
D33: Pesä Ysit (1976)

Sheet Arvo-ottelut
B1: ITÄ - LÄNSI - KORTTI
B2: Eveliina Tuominen | C2: 17.3.1998 Pori
B3: B-TYTÖT | C3: Itä - Länsi, tulos | D3: Joukkue | E3: Seura | G3: V | H3: T | I3: H | J3: Up. | K3: Lj. | L3: Palk. | M3: O | N3: K | O3: L | P3: T | Q3: KL | R3: 1 | S3: 2 | T3: 3 | U3: k | V3: KL-% | W3: Pelinjohtaja | X3: Yleisöä
B4: 27.06. 2015 Hyvinkää | C4: 2-0 (3-1, 5-4) | D4: Länsi | E4: Pesäkarhut | I4: 1 | J4: 2v | K4: 1 | M4: 1 | P4: 1 | Q4: 4/6 | R4: 4/5 | S4: 0/1 | V4: 66.7 % | W4: Juha Puhtimäki | X4: 869
B5: 01.07. 2017 Imatra | C5: 1-2 (2-2, 2-2, 0-1) | D5: Länsi | E5: Pesäkarhut | G5: 1 | J5: 3p | K5: 5 | M5: 1 | P5: 1 | Q5: 3/6 | R5: 2/2 | S5: 1/3 | T5: 0/1 | V5: 50.0 % | W5: Jussi-Pekka Tanskanen | X5: 1348
B6: Yhteensä | G6: 1 | I6: 1 | M6: 2 | P6: 2 | Q6: 7/12 | R6: 6/7 | S6: 1/4 | T6: 0/1 | V6: 58.3 %
